bitfinex/quotes_ETHUSD_20241116
["timestamp","ask_amount","ask_price","bid_price","bid_amount"]
[1731772728825,0.07965893,3138.9,3138.4,3.18627]
[1731772729245,0.07965893,3138.9,3138.2,3.1865]
[1731772729548,3.1861,3138.7,3138.1,3.0]
[1731772729696,3.1861,3138.7,3137.3,3.18736]
[1731772729697,3.08480414,3138.2,3137.3,3.18736]
[1731772729896,3.18715,3137.6,3136.8,3.18793]
[1731772730144,0.079682,3137.5,3136.8,3.18793]
[1731772730348,0.079682,3137.5,3137.0,3.18769]
[1731772730757,0.079682,3137.5,3137.1,3.18765]
[1731772730963,0.07968562,3137.7,3137.2,3.18747]
[1731772731163,3.18695,3137.8,3137.2,3.18747]
[1731772731330,0.07968564,3137.7,3137.3,3.0]
[1731772731533,3.26672564,3137.7,3137.0,3.18765]
[1731772732221,0.07968564,3137.7,3137.1,3.18763]
[1731772732616,3.26673564,3137.7,3137.1,3.18764]
[1731772732870,0.07968564,3137.7,3137.2,6.18753]
[1731772733177,3.18678,3138.0,3137.2,6.18753]
[1731772733178,3.26664568,3137.8,3137.2,3.18753]
[1731772733540,0.07968568,3137.8,3137.3,3.18739]
[1731772734064,0.07968568,3137.8,3137.4,3.18734]
[1731772734369,0.07968267,3138.1,3137.4,3.18734]
[1731772734660,0.07968267,3138.1,3137.6,3.18714]
[1731772735178,3.08480414,3138.5,3137.9,3.18684]
[1731772735179,0.07967557,3138.3,3137.9,3.18684]
[1731772735531,0.07967557,3138.3,3137.9,3.1868]
[1731772735760,0.07967557,3138.3,3137.8,3.0]
[1731772736035,0.07967557,3138.3,3137.8,6.18687]
[1731772736263,0.07966898,3138.4,3137.9,3.18683]
[1731772736469,0.0796629,3138.6,3138.1,3.18663]
[1731772739539,3.2658529,3138.6,3137.9,3.18683]
[1731772739875,3.2658529,3138.6,3138.0,3.18666]
[1731772739876,0.0796629,3138.6,3138.0,3.18666]
[1731772740243,3.2658629,3138.6,3138.0,3.18666]
[1731772740448,0.0796629,3138.6,3138.0,3.18666]
[1731772741488,3.18627,3138.5,3137.9,3.18683]
[1731772741694,0.07966424,3138.4,3138.0,3.18673]
[1731772741889,0.07966424,3138.6,3138.0,3.18673]
[1731772743292,0.07966424,3138.6,3138.1,3.18664]
[1731772743735,3.18623,3138.5,3137.2,3.0]
[1731772743891,3.18648,3138.3,3137.6,3.18706]
[1731772744098,0.07966784,3138.2,3137.7,3.0]
[1731772744406,0.07966784,3138.2,3137.8,3.18685]
[1731772744618,0.07966786,3138.4,3137.5,3.0]
[1731772744822,0.07965477,3139.0,3138.5,3.18615]
[1731772745023,0.07965477,3139.0,3138.6,3.18613]
[1731772745224,0.07965369,3139.3,3138.8,3.18586]
[1731772745430,0.07965369,3139.3,3138.9,3.18577]
[1731772745613,0.07965369,3139.3,3139.0,3.18572]
[1731772746042,0.07965369,3139.3,3138.8,3.18586]
[1731772746467,0.07965369,3139.3,3138.7,3.0]
[1731772746739,3.1856,3139.2,3138.7,3.0]
[1731772746899,0.07964655,3139.1,3138.7,3.0]
[1731772747401,0.07964655,3139.1,3138.7,6.18601]
[1731772747640,0.07964504,3139.3,3138.8,3.18592]
[1731772748347,3.18564,3139.1,3138.5,3.0]
[1731772748502,0.07964814,3139.0,3138.5,6.18619]
[1731772749027,0.07964814,3139.0,3138.7,3.0]
[1731772749348,0.07964809,3139.2,3138.5,3.0]
[1731772749556,3.18562,3139.1,3138.4,3.18625]
[1731772749852,3.26541168,3139.0,3138.4,3.18625]
[1731772750849,0.07965182,3138.8,3138.4,3.18625]
[1731772751054,0.07965208,3139.0,3138.5,3.18622]
[1731772751706,3.26547208,3139.0,3138.3,3.18639]
[1731772751897,3.26547208,3139.0,3138.2,3.50509]
[1731772752099,0.07965208,3139.0,3138.5,3.18617]
[1731772752303,0.0796504,3139.1,3138.5,3.18617]
[1731772753359,0.0796504,3139.1,3138.6,3.1861]
[1731772754062,0.0796504,3139.1,3138.7,3.18594]
[1731772754766,3.26496505,3139.4,3138.7,3.18594]
[1731772754932,3.26496505,3139.4,3138.8,3.18586]
[1731772756160,3.26496505,3139.4,3138.7,3.18594]
[1731772756365,3.26496505,3139.4,3138.9,3.18581]
[1731772756755,3.26496505,3139.4,3138.7,3.18594]
[1731772757161,3.26496505,3139.4,3138.7,6.3719]
[1731772757381,3.26496505,3139.4,3138.7,3.18594]
[1731772757891,3.26496505,3139.4,3138.8,3.18592]
[1731772758245,3.26496505,3139.4,3138.6,6.18606]
[1731772758448,3.59146156,3139.4,3138.2,0.3186]
[1731772758663,3.18554,3139.2,3138.6,3.18611]
[1731772758885,0.07964898,3139.1,3138.6,3.18611]
[1731772759590,0.07964898,3139.1,3138.6,3.18612]
[1731772760637,0.07964898,3139.1,3138.8,3.18591]
[1731772760843,0.07964849,3139.3,3138.9,3.18575]
[1731772760994,0.07964849,3139.3,3138.8,3.18591]
[1731772761329,0.07964849,3139.3,3138.9,3.18582]
[1731772762231,3.26486385,3139.5,3138.9,3.18582]
[1731772762735,4.06653015,3139.5,3138.9,3.18582]
[1731772763995,0.88131015,3139.5,3138.9,3.18582]
[1731772764195,3.18533,3139.4,3138.9,3.18582]
[1731772764423,0.07964359,3139.3,3138.9,3.18582]
[1731772764817,0.07964359,3139.3,3138.3,3.3186]
[1731772765020,0.48630658,3139.3,3137.5,0.3186]
[1731772765237,3.18584,3138.9,3138.4,3.0]
[1731772765542,0.07965156,3138.8,3138.4,6.18631]
[1731772766045,0.07965156,3138.8,3138.5,3.18617]
[1731772766195,0.07965121,3139.0,3138.5,3.18617]
[1731772766571,0.07965121,3139.0,3138.6,3.18611]
[1731772767133,0.07965121,3139.0,3138.7,3.18602]
[1731772767433,0.07964928,3139.2,3138.7,3.18602]
[1731772767649,3.26523928,3139.2,3138.5,3.18616]
[1731772768602,3.26523928,3139.2,3138.6,3.18612]
[1731772768808,3.26523928,3139.2,3138.5,3.18616]
[1731772768809,3.18562,3139.1,3138.5,3.18615]
[1731772769011,0.07964923,3139.0,3138.6,3.18608]
[1731772769752,0.07964923,3139.0,3138.8,3.18589]
[1731772769902,3.18528,3139.5,3138.9,3.18582]
[1731772770106,0.07964361,3139.4,3138.9,3.18582]
[1731772770442,0.07964361,3139.4,3139.0,3.18571]
[1731772771435,3.18475,3140.0,3139.3,3.18542]
[1731772771742,3.18507,3139.7,3139.0,6.18566]
[1731772771941,0.07963664,3139.6,3139.1,3.18562]
[1731772772314,0.07963664,3139.6,3139.3,3.18535]
[1731772772650,0.0796366,3139.9,3139.5,3.18522]
[1731772773240,0.0796366,3139.9,3139.5,6.37035]
[1731772773456,3.26424881,3140.1,3139.5,3.18513]
[1731772773961,0.07962881,3140.1,3139.7,3.185]
[1731772774256,3.26423881,3140.1,3139.5,3.18513]
[1731772774802,3.26423881,3140.1,3139.6,3.18508]
[1731772774803,0.07962881,3140.1,3139.6,3.18508]
[1731772776404,3.26424881,3140.1,3139.5,3.18519]
[1731772776598,3.18472,3140.0,3139.5,3.18519]
[1731772776909,0.07962701,3139.9,3139.5,3.18519]
[1731772777609,0.07962701,3139.9,3139.5,3.18514]
[1731772777803,0.079627,3140.1,3139.5,3.18514]
[1731772778452,0.079627,3140.1,3139.5,6.37027]
[1731772778653,0.079627,3140.1,3139.0,3.0]
[1731772778654,0.079627,3140.1,3139.8,3.18491]
[1731772778803,0.07962323,3140.3,3139.8,3.18491]
[1731772779191,0.07962323,3140.4,3140.0,3.1847]
[1731772779480,0.07962323,3140.4,3139.8,3.18491]
[1731772779481,0.07962323,3140.4,3139.9,3.18479]
[1731772779950,3.26394323,3140.4,3139.8,3.18483]
[1731772780138,3.26394323,3140.4,3139.8,6.36965]
[1731772780334,0.07962323,3140.4,3140.0,3.18462]
[1731772780529,0.07962323,3140.4,3139.8,3.18484]
[1731772780530,3.18431,3140.4,3139.8,3.18484]
[1731772780749,0.07961145,3140.3,3139.8,3.18484]
[1731772780943,3.26405145,3140.3,3139.5,6.18517]
[1731772781167,3.18462,3140.1,3139.3,3.18538]
[1731772781485,0.07961758,3140.0,3139.6,3.18511]
[1731772782556,3.26436758,3140.0,3139.5,3.0]
[1731772782771,0.07961758,3140.0,3139.5,6.18521]
[1731772783592,0.07961758,3140.0,3139.5,3.18521]
[1731772784892,0.07962593,3140.2,3139.9,3.18481]
[1731772785061,3.26392782,3140.4,3139.9,3.18481]
[1731772785678,0.07961782,3140.4,3139.9,3.18481]
[1731772785873,0.1441639,3140.7,3140.2,3.0]
[1731772786181,3.18437,3140.4,3139.3,3.0]
[1731772786385,0.07960637,3140.6,3139.3,3.0]
[1731772786386,0.07961602,3140.3,3139.7,3.18492]
[1731772786773,3.26402602,3140.3,3139.7,6.36987]
[1731772786963,3.26402602,3140.3,3139.8,3.18484]
[1731772786964,0.07961602,3140.3,3139.8,3.18484]
[1731772787760,0.07961602,3140.3,3139.9,3.18481]
[1731772788004,3.26398602,3140.4,3139.7,3.18492]
[1731772788167,0.07961602,3140.4,3139.8,3.18491]
[1731772788368,0.07961602,3140.4,3139.9,3.18479]
[1731772789095,0.07961602,3140.4,3139.7,3.18492]
[1731772789096,0.07961602,3140.4,3140.2,3.18442]
[1731772789302,0.1441639,3140.7,3140.3,3.18433]
[1731772790157,0.1441639,3140.7,3140.4,3.1843]
[1731772790372,0.22377004,3140.7,3140.4,3.1843]
[1731772790975,0.1441639,3140.7,3140.6,3.1841]
[1731772791182,0.1441639,3140.7,3140.4,0.06368345]
[1731772791474,0.1441639,3140.7,3140.3,3.0]
[1731772791676,0.22377004,3140.7,3140.3,3.0]
[1731772792322,0.1441639,3140.7,3140.3,3.0]
[1731772792479,0.1441639,3140.7,3140.3,6.1844]
[1731772793018,0.1441639,3140.7,3140.4,3.18425]
[1731772793525,0.1441639,3140.7,3140.5,3.18418]
[1731772793675,0.1441639,3140.7,3140.6,3.1841]
[1731772793886,0.1441639,3140.7,3140.6,6.1841]
[1731772794816,0.1441639,3140.7,3140.3,3.0]
[1731772795234,3.1842,3140.5,3139.4,0.3186]
[1731772795520,3.18467,3140.1,3139.4,6.37047]
[1731772795825,0.07962636,3140.0,3139.4,3.18523]
[1731772796007,3.26434636,3140.0,3139.4,3.18523]
[1731772796177,3.18488,3139.9,3138.5,3.18623]
[1731772796380,3.18488,3139.9,3138.3,0.02]
[1731772796381,0.72452982,3140.0,3139.6,3.18502]
[1731772796582,0.07963018,3140.0,3139.7,3.18495]
[1731772796898,6.34856996,3140.6,3140.1,3.18454]
[1731772797096,6.34856996,3140.6,3140.1,3.1846]
[1731772797300,0.07962582,3140.6,3140.1,3.1846]
[1731772797510,0.42039479,3140.6,3140.2,3.18448]
[1731772797820,0.42039479,3140.6,3140.2,3.1845]
[1731772798063,0.42039479,3140.6,3140.1,3.1846]
[1731772799209,0.42039479,3140.6,3140.1,3.18454]
[1731772799409,0.07962582,3140.6,3140.1,3.18454]
[1731772799646,3.26373582,3140.6,3140.1,3.18454]
[1731772800201,3.26373582,3140.6,3139.9,3.18476]
[1731772800774,0.07962582,3140.6,3139.7,3.18497]
[1731772801057,0.07962582,3140.6,3139.8,3.0]
[1731772801350,0.1441639,3140.7,3139.8,3.0]
[1731772801713,3.08480414,3140.6,3139.0,0.8686]
[1731772802014,3.18448,3140.3,3139.7,6.18499]
[1731772802221,3.18455,3140.2,3139.7,3.0]
[1731772802428,3.18455,3140.2,3139.5,3.18513]
[1731772802429,3.18444,3140.3,3139.5,3.1852]
[1731772802649,3.18444,3140.3,3139.6,3.18507]
[1731772802855,3.18502,3139.7,3138.9,3.18582]
[1731772803042,3.44349908,3140.3,3138.9,3.18582]
[1731772803043,3.18461,3140.1,3138.9,0.55]
[1731772803361,3.18477,3140.0,3139.3,3.18534]
[1731772803927,3.18489,3139.9,3139.3,3.18534]
[1731772804324,3.18489,3139.9,3138.9,3.55]
[1731772804551,3.18489,3139.9,3139.2,3.18545]
[1731772804854,3.18489,3139.9,3138.9,3.55]
[1731772804855,3.54313494,3140.3,3139.3,3.0]
[1731772805054,0.4339278,3140.2,3139.3,3.0]
[1731772805243,3.18491,3139.8,3139.3,3.0]
[1731772805615,3.18538,3139.4,3138.9,3.3186]
[1731772805969,3.18542,3139.3,3138.8,3.3186]
[1731772806320,3.18555,3139.2,3138.8,0.3186]
[1731772806665,3.18575,3139.0,3138.4,3.1863]
[1731772806862,3.18575,3139.0,3138.2,3.1865]
[1731772807027,3.18594,3138.8,3138.1,3.18661]
[1731772807853,3.18594,3138.8,3138.2,3.18653]
[1731772808028,3.26556017,3138.9,3138.2,3.18652]
[1731772808360,3.18594,3138.8,3138.3,3.0]
[1731772808926,0.07965017,3138.9,3138.4,3.1863]
[1731772809232,0.07965019,3139.1,3138.8,3.18593]
[1731772809435,3.18544,3139.3,3138.7,6.18599]
[1731772809635,0.07964258,3139.2,3138.5,3.0]
[1731772809820,3.18604,3138.7,3138.3,3.0]
[1731772810017,3.26569337,3138.7,3138.2,3.0]
[1731772810222,3.18622,3138.6,3138.0,3.0]
[1731772810477,3.18626,3138.5,3137.7,3.187]
[1731772810639,3.18626,3138.5,3137.8,3.18692]
[1731772811029,0.07965786,3138.4,3137.7,3.18701]
[1731772811368,0.07965786,3138.4,3137.8,0.06372882]
[1731772811550,0.07965786,3138.4,3137.2,3.18751]
[1731772811551,0.07965786,3138.4,3138.0,3.08480414]
[1731772811876,0.30848041,3139.5,3136.9,3.24794297]
[1731772811877,0.0796549,3139.4,3138.8,3.18592]
[1731772812165,0.35733553,3139.3,3138.8,3.18592]
[1731772812486,0.0796549,3139.4,3138.8,3.18592]
[1731772812628,0.0796426,3139.4,3138.8,3.18592]
[1731772812830,0.0796426,3139.4,3138.4,3.0]
[1731772813030,0.0796426,3139.6,3139.0,3.18565]
[1731772813232,3.18465,3140.1,3139.2,3.18544]
[1731772813489,0.35701398,3140.0,3139.4,3.18532]
[1731772813633,3.26434852,3140.0,3139.4,3.18532]
[1731772813982,0.07962852,3140.0,3139.4,3.18532]
[1731772814526,0.07962852,3140.0,3138.4,3.0]
[1731772814762,0.07962852,3140.0,3139.1,3.0]
[1731772814763,3.18494,3139.8,3139.1,3.0]
[1731772814972,0.07963422,3139.7,3139.1,3.0]
[1731772815129,0.07963422,3139.7,3139.2,3.18551]
[1731772815329,0.07963422,3139.7,3139.3,3.18541]
[1731772815569,6.26942414,3140.1,3139.3,3.18541]
[1731772815570,0.07963417,3140.0,3139.3,3.18541]
[1731772815871,0.07963417,3140.0,3137.9,3.18675]
[1731772815872,3.18542,3139.3,3137.9,3.18675]
[1731772816032,3.18542,3139.3,3137.6,3.93647863]
[1731772816033,3.18577,3139.0,3138.4,3.18627]
[1731772816235,0.07965451,3139.1,3138.7,3.18602]
[1731772816530,3.08480414,3139.5,3137.8,3.1869]
[1731772816531,0.07965067,3139.2,3138.8,3.18591]
[1731772817098,3.18578,3139.0,3137.7,3.18704]
[1731772817243,3.16446233,3138.9,3138.0,3.18672]
[1731772817443,3.16446233,3138.9,3138.1,3.18661]
[1731772817444,3.18603,3138.7,3138.1,3.18661]
[1731772817668,0.07966156,3138.6,3138.1,3.18661]
[1731772818387,0.07966156,3138.6,3138.1,3.18656]
[1731772818555,0.07966155,3138.7,3138.3,3.18642]
[1731772819001,0.07966155,3138.7,3138.3,3.18636]
[1731772819296,0.07966118,3139.1,3138.6,3.18612]
[1731772819462,0.07965332,3139.8,3139.0,3.0]
[1731772819659,0.07963605,3139.9,3139.3,3.18535]
[1731772819845,3.16444019,3139.9,3139.4,3.1853]
[1731772820042,3.16444019,3139.9,3139.2,3.18552]
[1731772820245,0.75090013,3139.9,3138.8,6.18593]
[1731772820521,0.07963605,3139.9,3139.4,3.18531]
[1731772820682,3.18477,3140.0,3139.4,3.18531]
[1731772820883,3.18502,3139.7,3139.5,0.3186]
[1731772821065,3.18523,3139.5,3138.9,0.3181]
[1731772821280,3.08480414,3139.3,3138.9,0.3181]
[1731772821488,0.07965124,3139.2,3138.9,0.3181]
[1731772822003,0.07965124,3139.2,3138.7,3.18601]
[1731772822004,0.07965124,3139.2,3139.0,0.3181]
[1731772822208,3.26524124,3139.2,3139.0,0.3181]
[1731772822368,0.07965124,3139.2,3139.0,0.3181]
[1731772822791,0.07965124,3139.2,3138.7,0.3181]
[1731772823190,0.07965124,3139.2,3138.7,3.50412]
[1731772823406,0.39609678,3139.2,3138.9,0.3181]
[1731772823967,0.01,3139.8,3138.9,3.50388]
[1731772823968,3.08480414,3139.8,3138.9,3.50388]
[1731772824281,3.08480414,3139.5,3139.2,0.3181]
[1731772824608,3.18493,3139.8,3139.3,3.50352]
[1731772824609,0.07964489,3139.4,3139.3,3.50352]
[1731772824904,0.07963982,3139.7,3139.3,0.3181]
[1731772825202,0.6349394,3139.6,3139.2,0.3181]
[1731772825366,0.07964316,3139.5,3139.2,0.3181]
[1731772825565,0.07964316,3139.5,3138.8,3.50403]
[1731772825801,0.07964316,3139.5,3138.7,3.18602]
[1731772825802,3.26486316,3139.5,3139.0,0.3181]
[1731772826107,0.07964316,3139.5,3139.0,3.50382]
[1731772826316,0.46960342,3139.5,3139.0,0.3181]
[1731772826468,0.07964316,3139.5,3139.0,0.3181]
[1731772826801,0.07964316,3139.5,3139.1,0.3181]
[1731772827017,0.07964331,3139.8,3138.9,0.3181]
[1731772827167,0.07964331,3139.8,3139.4,3.18523]
[1731772827168,0.63492774,3139.7,3139.4,3.18523]
[1731772827369,0.63492774,3139.7,3138.3,3.0]
[1731772827370,0.07963853,3139.6,3139.0,3.18564]
[1731772827809,0.07963853,3139.6,3138.8,3.167773]
[1731772828012,6.27031414,3139.3,3138.6,3.18606]
[1731772828313,6.27031414,3139.3,3137.6,3.1871]
[1731772828314,3.18599,3138.8,3138.1,3.18661]
[1731772828474,0.39826364,3138.7,3138.1,3.18661]
[1731772828988,3.18619,3138.6,3137.9,6.37359]
[1731772829189,0.07966591,3138.5,3137.9,3.18678]
[1731772829378,0.07966591,3138.5,3137.7,0.3181]
[1731772829584,0.07966591,3138.5,3138.0,3.18673]
[1731772831518,0.07966473,3138.7,3138.1,3.18658]
[1731772831768,3.18613,3138.6,3138.0,3.18667]
[1731772831917,0.40624671,3138.5,3138.0,3.18667]
[1731772832124,0.40624671,3138.5,3138.1,3.18662]
[1731772832413,3.59249671,3138.5,3137.9,3.18677]
[1731772832614,3.59249671,3138.5,3137.6,3.18712]
[1731772832615,0.55,3138.4,3137.6,3.18712]
[1731772832815,0.55,3138.4,3137.1,3.18757]
[1731772832816,3.26620666,3138.3,3137.7,3.18701]
[1731772833026,3.56821067,3138.2,3137.6,3.18711]
[1731772833245,3.56821067,3138.2,3137.0,0.49863878]
[1731772833246,3.08480414,3137.7,3137.0,0.49863878]
[1731772833516,3.08480414,3137.7,3137.1,3.18758]
[1731772833517,0.07969244,3137.6,3137.1,3.18758]
[1731772833675,0.07969244,3137.6,3135.9,0.50880135]
[1731772833676,0.55,3137.4,3136.8,0.3181]
[1731772833878,0.55,3137.2,3136.7,3.18803]
[1731772834102,0.07970305,3137.1,3136.7,3.18803]
[1731772834480,0.07970305,3137.1,3136.8,3.1879]
[1731772834718,0.07970305,3137.1,3136.5,3.1882]
[1731772834931,0.46141936,3137.1,3136.5,3.1882]
[1731772835281,0.46141936,3137.1,3136.7,3.18802]
[1731772835282,0.07970305,3137.1,3136.7,3.18802]
[1731772835693,0.07970305,3137.1,3136.9,3.18784]
[1731772835922,6.56825067,3138.2,3136.1,6.18862]
[1731772835923,0.07970047,3137.4,3137.1,3.18758]
[1731772836225,3.18686,3137.9,3137.1,3.18758]
[1731772836226,0.55,3137.7,3137.2,3.18747]
[1731772836424,0.07969082,3137.6,3137.3,3.18744]
[1731772836577,3.18712,3137.7,3136.9,3.18782]
[1731772836792,3.18726,3137.5,3136.9,3.18782]
[1731772836985,3.18726,3137.5,3136.1,0.01]
[1731772836986,0.07969162,3137.4,3136.8,3.18786]
[1731772837493,0.07969162,3137.4,3136.9,3.18779]
[1731772837704,0.07969162,3137.4,3137.1,3.18759]
[1731772838033,0.07969162,3137.4,3137.0,3.18775]
[1731772838181,0.07969162,3137.4,3137.1,3.18763]
[1731772838507,0.07969162,3137.4,3136.7,3.18804]
[1731772838508,3.1875,3137.3,3136.7,3.18804]
[1731772838676,0.40641765,3137.2,3136.7,3.18804]
[1731772838884,0.07969849,3137.2,3136.9,3.18784]
[1731772839084,3.18757,3137.2,3136.6,3.0]
[1731772839384,0.07970394,3137.1,3136.6,3.18815]
[1731772839807,0.07970394,3137.1,3136.7,3.18798]
[1731772839990,0.40642033,3137.1,3136.7,3.18798]
[1731772840316,0.40642033,3137.1,3136.6,3.18807]
[1731772840993,0.07970394,3137.1,3136.6,3.18807]
[1731772841192,3.18783,3137.0,3136.3,3.18839]
[1731772841379,0.0797105,3136.9,3136.3,3.18839]
[1731772841580,0.55,3136.8,3136.1,3.18864]
[1731772841779,0.07971581,3136.7,3136.1,3.18864]
[1731772842380,0.07971581,3136.7,3136.1,3.1886]
[1731772842586,0.46148439,3136.7,3136.1,3.1886]
[1731772842800,3.64955439,3136.7,3136.1,3.1886]
[1731772843207,3.64955439,3136.7,3136.3,3.18843]
[1731772843208,0.46148439,3136.7,3136.3,3.18843]
[1731772843536,0.0797137,3137.1,3136.8,3.18794]
[1731772843687,3.18746,3137.3,3136.6,3.1881]
[1731772843893,3.18731,3137.5,3136.6,3.1881]
[1731772843894,0.07970129,3137.2,3136.6,3.1881]
[1731772844131,0.07970129,3137.2,3136.8,3.18795]
[1731772844424,0.07970129,3137.2,3136.2,3.25226008]
[1731772844642,3.26726129,3137.2,3136.5,3.1882]
[1731772844790,0.32672613,3137.1,3136.6,3.18816]
[1731772844990,0.07970133,3137.0,3136.6,3.18816]
[1731772845204,0.07970133,3137.0,3136.7,3.18798]
[1731772845404,0.07970133,3137.0,3136.6,3.18816]
[1731772845600,3.26725127,3137.2,3136.6,3.18816]
[1731772845832,3.89448168,3137.2,3136.6,3.18816]
[1731772846036,0.70693168,3137.2,3136.6,3.18816]
[1731772846237,0.07970127,3137.2,3136.2,3.18852]
[1731772846390,0.55,3137.5,3137.1,3.18759]
[1731772846593,0.07969269,3137.4,3137.1,3.18759]
[1731772846795,0.07969298,3137.8,3137.5,3.18722]
[1731772847115,0.07968251,3138.1,3136.6,6.19808]
[1731772847299,3.26634251,3138.1,3137.5,3.18715]
[1731772847493,0.76312383,3138.1,3137.6,3.18713]
[1731772847803,3.18682,3138.0,3137.3,3.18741]
[1731772848006,0.07967708,3137.9,3137.0,3.1877]
[1731772848207,3.18713,3137.7,3137.0,3.1877]
[1731772848424,3.58563447,3137.6,3137.0,3.1877]
[1731772848735,0.39840447,3137.6,3137.1,3.18765]
[1731772849320,0.39840447,3137.6,3137.1,3.18759]
[1731772849534,0.39840447,3137.6,3136.6,3.0]
[1731772849535,0.07969147,3137.6,3137.2,3.18752]
[1731772849739,3.18715,3137.6,3137.0,3.18768]
[1731772849926,0.07968973,3137.5,3137.0,3.18768]
[1731772850247,3.26699973,3137.5,3136.7,3.18802]
[1731772850419,3.83277497,3137.4,3136.6,3.18815]
[1731772850607,0.55,3137.1,3136.3,3.1884]
[1731772850806,0.07970011,3137.0,3136.4,6.18834]
[1731772851007,0.07970011,3137.0,3136.6,3.18809]
[1731772851237,0.07970011,3137.0,3136.6,3.18808]
[1731772851412,3.26749011,3137.0,3136.2,6.18853]
[1731772851611,3.18786,3136.9,3136.3,3.1884]
[1731772851793,0.07971052,3136.8,3136.3,3.1884]
[1731772851998,3.26768052,3136.8,3136.2,3.18855]
[1731772852194,3.26771052,3136.8,3136.2,3.18855]
[1731772852414,3.83363705,3136.7,3136.2,3.18855]
[1731772852641,3.83363705,3136.7,3135.9,3.18883]
[1731772852642,3.26794126,3136.6,3135.9,3.18883]
[1731772852944,3.26794126,3136.6,3136.0,3.18877]
[1731772853239,0.07971126,3136.6,3136.1,3.18867]
[1731772853745,3.1879,3136.9,3136.1,3.18867]
[1731772853746,0.55,3136.7,3136.2,3.18856]
[1731772854034,0.07971586,3136.7,3136.3,3.18841]
[1731772854242,0.07971586,3136.7,3136.5,3.0]
[1731772854444,3.18732,3137.5,3136.5,3.0]
[1731772854445,0.07970352,3137.2,3136.8,3.18796]
[1731772854736,0.07970352,3137.2,3136.8,3.18791]
[1731772855241,0.07970352,3137.2,3136.2,3.0]
[1731772855242,0.07970352,3137.2,3136.4,3.18833]
[1731772855531,0.07970352,3137.2,3136.6,3.18808]
[1731772855944,0.07970352,3137.2,3136.8,3.18793]
[1731772856140,3.62590207,3137.2,3136.6,3.18808]
[1731772857035,3.62590207,3137.2,3136.4,3.18836]
[1731772857036,0.43828207,3137.2,3136.4,3.18836]
[1731772857237,3.18766,3137.1,3136.6,3.18815]
[1731772857552,0.0797035,3137.0,3136.6,3.18815]
[1731772857700,0.44228671,3137.0,3136.2,6.18855]
[1731772857904,3.18802,3136.8,3136.2,3.0]
[1731772858134,0.07971114,3136.7,3136.1,3.18865]
[1731772858438,3.26785114,3136.7,3136.1,3.18865]
[1731772858825,3.26785114,3136.7,3135.8,3.18893]
[1731772858826,3.18819,3136.6,3136.0,3.18876]
[1731772859156,0.07971743,3136.5,3136.0,3.18871]
[1731772859319,0.72531217,3136.5,3136.0,3.18871]
[1731772859642,0.72531217,3136.5,3136.1,3.18866]
[1731772859847,0.07971743,3136.5,3136.1,3.18866]
[1731772860005,3.26785706,3136.7,3136.1,3.18866]
[1731772860199,3.18817,3136.6,3136.0,3.18876]
[1731772860401,0.07971739,3136.8,3136.6,3.18813]
[1731772860632,0.07970682,3137.2,3136.7,3.18805]
[1731772860946,0.07970682,3137.2,3136.6,3.18816]
[1731772861112,0.07970682,3137.2,3135.9,3.50691]
[1731772861300,0.07970339,3137.4,3136.9,3.18781]
[1731772862144,0.07970339,3137.4,3137.2,3.18746]
[1731772862352,3.18682,3138.0,3136.4,3.06375747]
[1731772862353,3.26664015,3137.8,3137.1,3.18759]
[1731772862521,3.26664015,3137.8,3136.7,3.50612]
[1731772862522,3.18745,3137.4,3136.7,3.18799]
[1731772862716,3.18745,3137.4,3136.3,0.3181]
[1731772862717,0.07969395,3137.3,3137.1,3.18756]
[1731772862916,0.07968962,3137.6,3137.3,3.18742]
[1731772863398,3.18667,3138.1,3137.3,3.18742]
[1731772863601,0.07968495,3138.0,3137.3,3.18742]
[1731772863905,0.3266355,3137.9,3136.8,0.38184796]
[1731772864101,3.18743,3137.4,3136.7,3.18803]
[1731772864343,0.07969465,3137.3,3136.8,3.18788]
[1731772864529,3.18744,3137.4,3136.8,3.18788]
[1731772864699,0.40640733,3137.3,3136.9,3.18783]
[1731772864902,0.07969394,3137.3,3136.9,3.18783]
[1731772865138,0.07969387,3137.5,3137.0,3.18774]
[1731772865658,0.07969387,3137.5,3137.0,3.1877]
[1731772865858,0.07969385,3137.6,3137.1,3.1876]
[1731772866017,0.07969385,3137.6,3136.9,3.18783]
[1731772866018,3.18726,3137.5,3136.9,3.18778]
[1731772866217,3.18726,3137.5,3136.7,3.50613]
[1731772866218,0.07969458,3137.4,3136.7,3.50613]
[1731772866530,3.18757,3137.2,3136.8,3.0]
[1731772866868,3.2673938,3137.1,3136.6,3.0]
[1731772867162,3.2673938,3137.1,3136.3,3.18846]
[1731772867369,3.18813,3136.7,3136.1,3.18863]
[1731772867535,0.07971004,3136.6,3136.1,3.18863]
[1731772867863,0.07971004,3136.6,3136.2,3.50664]
[1731772868217,3.26768004,3136.8,3136.2,3.50664]
[1731772868420,3.18812,3136.7,3136.3,0.3181]
[1731772868633,0.07971086,3136.6,3136.3,0.3181]
[1731772868836,0.40649395,3136.6,3136.3,0.3181]
[1731772869385,0.40649395,3136.6,3136.2,0.3181]
[1731772869661,0.40649395,3136.6,3136.2,3.50666]
[1731772869852,0.07971086,3136.6,3136.2,3.50666]
[1731772870171,0.07971077,3136.7,3136.2,3.50666]
[1731772870372,0.07970775,3137.2,3136.7,0.3181]
[1731772870663,3.824712,3137.5,3136.3,3.0637662]
[1731772870664,0.07969465,3137.4,3137.0,0.3181]
[1731772870868,0.46216585,3137.4,3137.0,3.50585]
[1731772871028,0.3824712,3137.4,3137.2,0.3181]
[1731772871230,0.07968768,3138.0,3137.4,0.3181]
[1731772871469,3.18684,3137.9,3137.4,0.3181]
[1731772871758,3.2666444,3137.8,3137.4,0.3181]
[1731772871920,0.0796844,3137.8,3137.4,0.3181]
[1731772872126,0.0796844,3138.0,3137.6,0.3181]
[1731772872431,0.32663544,3137.9,3137.6,0.3181]
[1731772872864,0.07967966,3137.8,3137.6,0.3181]